fUST/lending_fUST_20240406
["ID","MTS","AMOUNT","RATE_DAILY","PERIOD"]
[321696483,1712403041168,-500.0,0.00027065,2]
[321696484,1712403041178,-624.47,0.00027065,2]
[321696485,1712403041189,-657.0,0.00027065,2]
[321696486,1712403041200,-1108.85,0.00027065,2]
[321696487,1712403041210,-500.0,0.00027065,2]
[321696488,1712403041222,-321.90876846,0.00027065,2]
[321696489,1712403041234,-254.47123154,0.00027065,2]
[321696490,1712403041245,-1283.589052,0.00027065,2]
[321696491,1712403041257,-3924.260948,0.00027065,2]
[321696492,1712403041266,-665.29304104,0.00027065,2]
[321696508,1712403043522,-1021.96855091,0.00027065,2]
[321696509,1712403043538,-432.94646662,0.00027065,2]
[321696594,1712403073215,235.60680836,0.00026965,3]
[321696595,1712403075299,-300.0,0.00027064,2]
[321696596,1712403075325,-12110.12194143,0.00027065,2]
[321696597,1712403075350,-500.0,0.00027065,2]
[321696598,1712403075375,-3043.05,0.00027065,2]
[321696599,1712403075401,-500.0,0.00027065,2]
[321696600,1712403075426,-500.0,0.00027065,2]
[321696601,1712403075451,-3758.49,0.00027065,2]
[321696602,1712403075477,-1222.82,0.00027065,2]
[321696603,1712403075502,-500.0,0.00027065,2]
[321696604,1712403075526,-500.0,0.00027065,2]
[321696605,1712403075550,-616.56,0.00027065,2]
[321696606,1712403075574,-563.06,0.00027065,2]
[321696607,1712403075600,-1889.42,0.00027066,2]
[321696608,1712403075627,-500.0,0.00027066,2]
[321696609,1712403075652,-500.0,0.00027066,2]
[321696610,1712403075677,-467.16357142,0.00027066,2]
[321696611,1712403075701,-500.0,0.00027066,2]
[321696612,1712403075726,-500.0,0.00027066,2]
[321696613,1712403075752,-500.0,0.00027066,2]
[321696614,1712403075776,-528.46905481,0.00027066,2]
[321696615,1712403075817,-500.0,0.00027066,2]
[321696616,1712403075843,-500.0,0.00027066,2]
[321696617,1712403075869,-453.32193506,0.00027066,2]
[321696618,1712403075895,-500.0,0.00027066,2]
[321696619,1712403075920,-500.0,0.00027066,2]
[321696620,1712403075945,-198.66633583,0.00027066,2]
[321696621,1712403075972,-500.0,0.00027066,2]
[321696622,1712403075997,-156.76842714,0.00027164,2]
[321696623,1712403076025,-156.76842714,0.00027263,2]
[321696624,1712403076051,-196.83635511,0.00027338,2]
[321696625,1712403076077,-599.08,0.00027339,2]
[321696626,1712403076105,-500.0,0.00027339,2]
[321696627,1712403076132,-890.84,0.00027339,2]
[321696628,1712403076159,-1749.36,0.00027339,2]
[321696629,1712403076189,-500.0,0.00027339,2]
[321696630,1712403076216,-500.0,0.00027339,2]
[321696631,1712403076244,-500.0,0.00027339,2]
[321696632,1712403076270,-500.0,0.00027339,2]
[321696633,1712403076296,-500.0,0.00027339,2]
[321696634,1712403076322,-500.0,0.00027339,2]
[321696635,1712403076348,-553.08,0.00027339,2]
[321696636,1712403076377,-2616.47,0.00027339,2]
[321696637,1712403076406,-1207.25,0.00027339,2]
[321696638,1712403076435,-500.0,0.00027339,2]
[321696639,1712403076467,-3222.40395206,0.00027339,2]
[321696640,1712403079276,-15758.24604794,0.00027339,2]
[321696641,1712403079304,-4311.78,0.00027339,2]
[321696642,1712403079332,-676.62,0.00027339,2]
[321696643,1712403079359,-1408.71,0.00027339,2]
[321696644,1712403079385,-5075.02,0.00027339,2]
[321696645,1712403079412,-954.88,0.00027339,2]
[321696646,1712403079440,-2982.18,0.00027339,2]
[321696647,1712403079468,-2210.42,0.00027339,2]
[321696648,1712403079494,-664.35,0.00027339,2]
[321696649,1712403079638,-2451.72,0.00027339,2]
[321696650,1712403079671,-1268.01,0.00027339,2]
[321696651,1712403079697,-3698.58,0.00027339,2]
[321696652,1712403079721,-500.0,0.00027339,2]
[321696653,1712403079747,-624.47,0.00027339,2]
[321696654,1712403079773,-657.0,0.00027339,2]
[321696655,1712403079799,-1108.85,0.00027339,2]
[321696656,1712403079825,-500.0,0.00027339,2]
[321696657,1712403079851,-576.38,0.00027339,2]
[321696658,1712403079876,-2572.78395206,0.00027339,2]
[321696659,1712403081876,-2635.06604794,0.00027339,2]
[321696660,1712403081902,-14230.33,0.00027339,2]
[321696661,1712403081927,-500.0,0.00027339,2]
[321696662,1712403081952,-3043.05,0.00027339,2]
[321696663,1712403081977,-500.0,0.00027339,2]
[321696664,1712403082001,-500.0,0.00027339,2]
[321696665,1712403082028,-3758.49,0.00027339,2]
[321696666,1712403082053,-1222.82,0.00027339,2]
[321696667,1712403082077,-500.0,0.00027339,2]
[321696668,1712403082101,-500.0,0.00027339,2]
[321696669,1712403082127,-616.56,0.00027339,2]
[321696670,1712403082153,-563.06,0.00027339,2]
[321696671,1712403082177,-1889.42,0.0002734,2]
[321696672,1712403082202,-515.1772304,0.0002734,2]
[321696673,1712403082228,-500.0,0.0002734,2]
[321696674,1712403082254,-500.0,0.0002734,2]
[321696675,1712403082280,-500.0,0.0002734,2]
[321696676,1712403082305,-500.0,0.0002734,2]
[321696677,1712403082329,-529.69670715,0.0002734,2]
[321696678,1712403082354,-500.0,0.0002734,2]
[321696679,1712403082379,-500.0,0.0002734,2]
[321696680,1712403082403,-500.0,0.0002734,2]
[321696681,1712403082427,-212.49835851,0.0002734,2]
[321696682,1712403082453,-151.0,0.0002734,2]
[321696683,1712403082479,-156.76842714,0.00027363,2]
[321696684,1712403082504,-500.0,0.00027397,2]
[321696685,1712403082531,-500.0,0.00027397,2]
[321696686,1712403082557,-156.76842714,0.00027463,2]
[321696687,1712403082582,-1500.0,0.00027513,2]
[321696688,1712403082608,-156.76842714,0.00027563,2]
[321696689,1712403082634,-153.0,0.000276,2]
[321696690,1712403082659,-599.08,0.00027613,2]
[321696691,1712403082684,-500.0,0.00027613,2]
[321696692,1712403082710,-890.84,0.00027613,2]
[321696693,1712403082734,-1749.36,0.00027613,2]
[321696694,1712403082759,-500.0,0.00027613,2]
[321696695,1712403082792,-500.0,0.00027613,2]
[321696696,1712403082817,-435.08097818,0.00027613,2]
[321696697,1712403082842,-500.0,0.00027613,2]
[321696698,1712403082867,-500.0,0.00027613,2]
[321696699,1712403082892,-500.0,0.00027613,2]
[321696700,1712403082917,-553.08,0.00027613,2]
[321696701,1712403082942,-2282.0853964,0.00027613,2]
[321696702,1712403084019,-334.3846036,0.00027613,2]
[321696703,1712403084045,-1207.25,0.00027613,2]
[321696704,1712403084074,-500.0,0.00027613,2]
[321696705,1712403084101,-18980.65,0.00027613,2]
[321696706,1712403084164,-4311.78,0.00027613,2]
[321696707,1712403084196,-676.62,0.00027613,2]
[321696708,1712403084222,-1408.71,0.00027613,2]
[321696709,1712403084250,-5075.02,0.00027613,2]
[321696710,1712403084278,-954.88,0.00027613,2]
[321696711,1712403084306,-2982.18,0.00027613,2]
[321696712,1712403084333,-2210.42,0.00027613,2]
[321696713,1712403084359,-664.35,0.00027613,2]
[321696714,1712403084384,-2451.72,0.00027613,2]
[321696715,1712403084410,-1268.01,0.00027613,2]
[321696716,1712403084434,-3698.58,0.00027613,2]
[321696717,1712403084459,-500.0,0.00027613,2]
[321696718,1712403084484,-624.47,0.00027613,2]
[321696719,1712403084509,-150.9753964,0.00027613,2]
[321696720,1712403086493,-506.0246036,0.00027613,2]
[321696721,1712403086520,-1108.85,0.00027613,2]
[321696722,1712403086548,-500.0,0.00027613,2]
[321696723,1712403086574,-576.38,0.00027613,2]
[321696724,1712403086602,-151.0,0.00027613,2]
[321696725,1712403086628,-5207.85,0.00027613,2]
[321696726,1712403086801,-14230.33,0.00027613,2]
[321696727,1712403086828,-500.0,0.00027613,2]
[321696728,1712403086855,-3043.05,0.00027613,2]
[321696729,1712403086880,-500.0,0.00027613,2]
[321696730,1712403086905,-500.0,0.00027613,2]
[321696731,1712403086931,-3758.49,0.00027613,2]
[321696732,1712403086955,-1222.82,0.00027613,2]
[321696733,1712403086980,-500.0,0.00027613,2]
[321696734,1712403087004,-500.0,0.00027613,2]
[321696735,1712403087029,-616.56,0.00027613,2]
[321696736,1712403087055,-563.06,0.00027613,2]
[321696737,1712403087079,-1889.42,0.00027614,2]
[321696738,1712403087104,-500.0,0.00027614,2]
[321696739,1712403087129,-631.0459172,0.00027614,2]
[321696740,1712403087153,-500.0,0.00027614,2]
[321696741,1712403087177,-500.0,0.00027614,2]
[321696742,1712403087202,-500.0,0.00027614,2]
[321696743,1712403087227,-500.0,0.00027614,2]
[321696744,1712403087254,-500.0,0.00027614,2]
[321696745,1712403087280,-494.64971133,0.00027614,2]
[321696746,1712403087304,-156.76842714,0.00027663,2]
[321696747,1712403087330,-156.76842714,0.00027763,2]
[321696748,1712403087357,-156.76842714,0.00027862,2]
[321696749,1712403087382,-599.08,0.00027887,2]
[321696750,1712403087408,-500.0,0.00027887,2]
[321696751,1712403087434,-890.84,0.00027887,2]
[321696752,1712403087461,-1749.36,0.00027887,2]
[321696753,1712403087486,-500.0,0.00027887,2]
[321696754,1712403087511,-500.0,0.00027887,2]
[321696755,1712403087537,-500.0,0.00027887,2]
[321696756,1712403087562,-500.0,0.00027887,2]
[321696757,1712403087586,-500.0,0.00027887,2]
[321696758,1712403087612,-553.08,0.00027887,2]
[321696759,1712403087640,-737.80448645,0.00027887,2]
[321696760,1712403088911,-1878.66551355,0.00027887,2]
[321696761,1712403088937,-1207.25,0.00027887,2]
[321696762,1712403088962,-500.0,0.00027887,2]
[321696763,1712403088988,-18980.65,0.00027887,2]
[321696764,1712403089015,-4311.78,0.00027887,2]
[321696765,1712403089041,-676.62,0.00027887,2]
[321696766,1712403089067,-1408.71,0.00027887,2]
[321696767,1712403089096,-5075.02,0.00027887,2]
[321696768,1712403089123,-954.88,0.00027887,2]
[321696769,1712403089150,-2982.18,0.00027887,2]
[321696770,1712403089187,-2210.42,0.00027887,2]
[321696771,1712403089222,-664.35,0.00027887,2]
[321696772,1712403089255,-2451.72,0.00027887,2]
[321696773,1712403089287,-1268.01,0.00027887,2]
[321696774,1712403089319,-3429.74448645,0.00027887,2]
[321696775,1712403090580,-268.83551355,0.00027887,2]
[321696776,1712403090614,-500.0,0.00027887,2]
[321696777,1712403090643,-624.47,0.00027887,2]
[321696778,1712403090677,-657.0,0.00027887,2]
[321696779,1712403090709,-1108.85,0.00027887,2]
[321696780,1712403090739,-500.0,0.00027887,2]
[321696781,1712403090771,-576.38,0.00027887,2]
[321696782,1712403090799,-5207.85,0.00027887,2]
[321696783,1712403090831,-14230.33,0.00027887,2]
[321696784,1712403090862,-500.0,0.00027887,2]
[321696785,1712403090895,-3043.05,0.00027887,2]
[321696786,1712403090928,-500.0,0.00027887,2]
[321696787,1712403090961,-500.0,0.00027887,2]
[321696788,1712403090993,-3758.49,0.00027887,2]
[321696789,1712403091028,-1222.82,0.00027887,2]
[321696790,1712403091061,-500.0,0.00027887,2]
[321696791,1712403091092,-500.0,0.00027887,2]
[321696792,1712403091120,-616.56,0.00027887,2]
[321696793,1712403091146,-563.06,0.00027887,2]
[321696794,1712403091175,-1889.42,0.00027888,2]
[321696795,1712403091205,-500.0,0.00027888,2]
[321696796,1712403091234,-500.0,0.00027888,2]
[321696797,1712403091261,-336.00000044,0.00027888,2]
[321696798,1712403091289,-500.0,0.00027888,2]
[321696799,1712403091317,-500.0,0.00027888,2]
[321696800,1712403091345,-500.0,0.00027888,2]
[321696801,1712403091373,-771.61612795,0.00027889,2]
[321696802,1712403091402,-156.76842714,0.00027962,2]
[321696803,1712403094655,2180.39,0.00027065,2]
[321696804,1712403094908,2180.39,0.00027339,2]
[321696805,1712403095184,2180.39,0.00027613,2]
[321696806,1712403097054,2180.39,0.00027887,2]
[321696807,1712403106617,238.374886,0.00030137,120]
[321696808,1712403163062,155.00620025,0.00025098,2]
[321696809,1712403168932,156.66627418,0.00020297,2]
[321696810,1712403169260,12264.23536357,0.00026963,2]
[321696811,1712403182069,155.0,0.00021649,2]
[321696812,1712403188964,244.16692299,0.00020296,2]
[321696813,1712403202007,258.12184717,0.00021569,2]
[321696814,1712403204484,171.01674,0.00025731,2]
[321696815,1712403219223,-524.27891833,0.0002696,2]
[321696816,1712403219251,-232.95017337,0.0002696,2]
[321696817,1712403219278,-155.0,0.00026961,2]
[321696818,1712403219304,-300.0,0.00026962,2]
[321696819,1712403219332,-300.0,0.00026962,2]
[321696820,1712403219358,-210.99211525,0.00026962,2]
[321696821,1712403219385,-1101.40297251,0.00026963,2]
[321696822,1712403219410,-20215.64393561,0.00026963,2]
[321696823,1712403219435,-1101.4029725,0.00027032,2]
[321696824,1712403219460,-2669.23044946,0.00027063,2]
[321696825,1712403219487,-407.76045621,0.00027063,2]
[321696826,1712403219514,-1227.21712556,0.00027063,2]
[321696827,1712403219541,-322.99364155,0.00027063,2]
[321696828,1712403219567,-5561.60923503,0.00027063,2]
[321696829,1712403219712,-283.79016332,0.00027063,2]
[321696830,1712403219739,-216.88392115,0.00027063,2]
[321696831,1712403219765,-2443.36429581,0.00027063,2]
[321696832,1712403219790,-282.48776653,0.00027063,2]
[321696833,1712403219815,-325.73813838,0.00027063,2]
[321696834,1712403219840,-946.06297937,0.00027063,2]
[321696835,1712403219865,-155.0,0.00027063,2]
[321696836,1712403219890,-2091.60059617,0.00027063,2]
[321696837,1712403219915,-215.58014229,0.00027063,2]
[321696838,1712403219941,-472.86433068,0.00027063,2]
[321696839,1712403219969,-3715.07390637,0.00027063,2]
[321696840,1712403219996,-562.30559427,0.00027063,2]
[321696841,1712403220023,-1287.29576434,0.00027063,2]
[321696842,1712403220050,-671.47040594,0.00027063,2]
[321696843,1712403228831,155.0,0.00025731,2]
[321696844,1712403237382,690.43254692,0.00025731,2]
[321696845,1712403238714,155.0,0.00025731,2]
[321696846,1712403241881,-155.0,0.00026958,2]
[321696847,1712403241909,-300.0,0.00026958,2]
[321696848,1712403241934,-282.48776653,0.00026959,2]
[321696849,1712403241959,-155.0,0.00026959,2]
[321696850,1712403241984,-2577.89649192,0.00026959,2]
[321696851,1712403242009,-867.82809104,0.00026959,2]
[321696852,1712403242033,-1864.3753617,0.00026959,2]
[321696853,1712403242058,-435.35442115,0.00026959,2]
[321696854,1712403242083,-886.09150372,0.0002696,2]
[321696855,1712403242108,-179.48690401,0.0002696,2]
[321696856,1712403242133,-1910.80240512,0.0002696,2]
[321696857,1712403242160,-210.99211525,0.0002696,2]
[321696858,1712403242186,-192.68698064,0.0002696,2]
[321696859,1712403242210,-1922.4904426,0.0002696,2]
[321696860,1712403242236,-323.5846584,0.0002696,2]
[321696861,1712403242262,-182.39710533,0.0002696,2]
[321696862,1712403242289,-472.86433068,0.0002696,2]
[321696863,1712403242315,-848.40973852,0.0002696,2]
[321696864,1712403242339,-155.0,0.0002696,2]
[321696865,1712403242364,-337.93523117,0.0002696,2]
[321696866,1712403242388,-3715.07390637,0.0002696,2]
[321696867,1712403242414,-1306.43290206,0.00026961,2]
[321696868,1712403242438,-28717.80964379,0.00026962,2]
[321696869,1712403243998,19121.86405595,0.00025731,2]
[321696870,1712403248829,155.0,0.00025731,2]
[321696871,1712403253134,569.25915622,0.00025787,2]
[321696872,1712403253399,-300.0,0.00026958,2]
[321696873,1712403253426,-18841.88625464,0.00026962,2]
[321696874,1712403253453,-1273.9117288,0.00027063,2]
[321696875,1712403253477,-500.0,0.00027064,2]
[321696876,1712403253502,-542.88,0.00027064,2]
[321696877,1712403253526,-500.0,0.00027064,2]
[321696878,1712403253551,-795.73,0.00027064,2]
[321696879,1712403253578,-742.36,0.00027064,2]
[321696880,1712403253605,-1457.8,0.00027064,2]
[321696881,1712403253632,-515.40565992,0.00027064,2]
[321696882,1712403253661,-500.0,0.00027064,2]
[321696883,1712403253687,-500.0,0.00027064,2]
[321696884,1712403253716,-515.14430349,0.00027064,2]
[321696885,1712403253743,-500.0,0.00027064,2]
[321696886,1712403253770,-553.63,0.00027064,2]
[321696887,1712403253799,-500.0,0.00027064,2]
[321696888,1712403253826,-1056.68,0.00027064,2]
[321696889,1712403253852,-500.0,0.00027064,2]
[321696890,1712403253877,-520.39,0.00027064,2]
[321696891,1712403253902,-500.0,0.00027064,2]
[321696892,1712403253929,-15817.21,0.00027065,2]
[321696893,1712403253955,-1066.97205315,0.00027065,2]
[321696894,1712403254732,158.6542986,0.00025731,2]
[321696895,1712403257385,690.43254692,0.00025731,2]
[321696896,1712403259290,19121.86405595,0.00025731,2]
[321696897,1712403259812,-210.99211525,0.00027062,2]
[321696898,1712403259836,-155.0,0.00027062,2]
[321696899,1712403259861,-195.15721683,0.00027062,2]
[321696900,1712403259886,-1864.3753617,0.00027062,2]
[321696901,1712403259923,-209.26018507,0.00027062,2]
[321696902,1712403259950,-445.8882606,0.00027063,2]
[321696903,1712403259975,-191.48085131,0.00027063,2]
[321696904,1712403260002,-1306.43290206,0.00027063,2]
[321696905,1712403260028,-228.03357365,0.00027063,2]
[321696906,1712403260055,-886.09150372,0.00027064,2]
[321696907,1712403260081,-310.99036329,0.00027064,2]
[321696908,1712403260106,-297.81670547,0.00027064,2]
[321696909,1712403260131,-500.0,0.00027064,2]
[321696910,1712403260159,-2526.17794685,0.00027065,2]
[321696911,1712403260187,-4229.19,0.00027065,2]
[321696912,1712403260214,-1173.92,0.00027065,2]
[321696913,1712403260241,-2485.15,0.00027065,2]
[321696914,1712403260402,-1842.02,0.00027065,2]
[321696915,1712403260435,-3082.15,0.00027065,2]
[321696916,1712403260462,-547.5,0.00027065,2]
[321696917,1712403260488,-11858.61,0.00027065,2]
[321696918,1712403260515,-1101.4029725,0.00027101,2]
[321696919,1712403260540,-1101.4029725,0.0002717,2]
[321696920,1712403260565,-1101.4029725,0.00027239,2]
[321696921,1712403260591,-363.03730881,0.00027338,2]
[321696922,1712403260615,-180.0,0.00027338,2]
[321696923,1712403260640,-542.88,0.00027338,2]
[321696924,1712403260666,-500.0,0.00027338,2]
[321696925,1712403260693,-795.73,0.00027338,2]
[321696926,1712403260719,-742.36,0.00027338,2]
[321696927,1712403260743,-1457.8,0.00027338,2]
[321696928,1712403260768,-644.28794594,0.00027338,2]
[321696929,1712403260794,-500.0,0.00027338,2]
[321696930,1712403260819,-553.63,0.00027338,2]
[321696931,1712403260846,-500.0,0.00027338,2]
[321696932,1712403260871,-1056.68,0.00027338,2]
[321696933,1712403260898,-520.39,0.00027338,2]
[321696934,1712403260923,-500.0,0.00027338,2]
[321696935,1712403260949,-500.0,0.00027338,2]
[321696936,1712403260974,-792.75884195,0.00027339,2]
[321696937,1712403264813,156.20883887,0.00025731,2]
[321696938,1712403270683,-884.57756456,0.00027062,2]
[321696939,1712403270708,-4339.87,0.00027065,2]
[321696940,1712403270734,-42775.55243544,0.00027338,2]
[321696941,1712403277294,9349.88295359,0.00025731,2]
[321696942,1712403277381,478.40356901,0.00025731,2]
[321696943,1712403313305,17665.86261469,0.00025731,2]
[321696944,1712403340970,156.45450684,0.00019,2]
[321696945,1712403403251,155.0,0.00019,2]
[321696946,1712403403391,384.60422548,0.00019,2]
[321696947,1712403409648,14303.94126768,0.00019,2]
[321696948,1712403409680,1722.86543557,0.00019,2]
[321696949,1712403409809,19121.86405595,0.00019,2]
[321696950,1712403416327,1086.30756391,0.00018999,2]
[321696951,1712403417251,155.58179136,0.00019,2]
[321696952,1712403421359,384.60422548,0.00019,2]
[321696953,1712403421654,155.0,0.00019,2]
[321696954,1712403421908,155.0,0.00019,2]
[321696955,1712403422479,261.27248051,0.00019,2]
[321696956,1712403423230,155.37622894,0.00019,2]
[321696957,1712403425812,19121.86405595,0.00019,2]
[321696958,1712403435187,155.12565178,0.00019,2]
[321696959,1712403437825,162.51534694,0.00019,2]
[321696960,1712403439359,384.60422548,0.00019,2]
[321696961,1712403439610,16026.80670325,0.00019,2]
[321696962,1712403439759,254.23573009,0.00019,2]
[321696963,1712403451816,3850.46010271,0.00019,2]
[321696964,1712403453197,155.12565178,0.00019,2]
[321696965,1712403457082,251.48132287,0.00019,2]
[321696966,1712403457369,394.88435322,0.00019,2]
[321696967,1712403463611,16026.80670325,0.00019,2]
[321696968,1712403469786,251.48132287,0.00019,2]
[321696969,1712403473194,155.12409928,0.00019,2]
[321696970,1712403483631,4255.63394004,0.00019,2]
[321696971,1712403487782,251.48132287,0.00019,2]
[321696972,1712403489210,155.12409928,0.00019,2]
[321696973,1712403505790,227.62716761,0.00019,2]
[321696974,1712403507203,155.12409928,0.00019,2]
[321696975,1712403527195,232.12399746,0.00019,2]
[321696976,1712403550777,203.69871,0.00024569,2]
[321696977,1712403550967,203.69871,0.00024569,120]
[321696979,1712403608816,24900.0,0.00024137,2]
[321696980,1712403638965,3093.8818682,0.000243,2]
[321696981,1712403674740,516.899356,0.00030137,120]
[321696982,1712403730011,882.00697015,0.00023881,2]
[321696983,1712403732876,2352.06397576,0.00024886,2]
[321696984,1712403783476,571.2688,0.00025,2]
[321696987,1712403833379,434.2493958,0.00024078,4]
[321696991,1712403857954,908.862559,0.00024076,2]
[321696992,1712403872221,5407.0114717,0.00024076,2]
[321696993,1712403911207,155.0,0.00025,2]
[321696994,1712403916538,2577.89649192,0.00025,2]
[321696995,1712403917052,1306.43290206,0.00025,2]
[321696996,1712403918010,155.0,0.00025,2]
[321696997,1712403919087,232.95017337,0.00025,2]
[321696998,1712403923945,205.53253085,0.00025,2]
[321696999,1712403923995,192.780507,0.00023812,2]
[321697000,1712403926724,505.30736987,0.00025,2]
[321697001,1712403930157,1131.10155601,0.00025,2]
[321697002,1712403932643,155.0,0.00025,2]
[321697003,1712403937050,157.14265956,0.00025,2]
[321697004,1712403940820,282.0779007,0.00025,2]
[321697005,1712403943723,1929.1859808,0.00025,2]
[321697006,1712403945059,867.75316092,0.00025,2]
[321697007,1712403945886,155.0,0.00025,2]
[321697008,1712403945968,210.99211525,0.00025,2]
[321697009,1712403946131,153.0,0.00032192,60]
[321697010,1712403952999,2086.93001437,0.00025,2]
[321697011,1712403953975,360.55956051,0.00025,2]
[321697012,1712403960603,300.0,0.00025,2]
[321697013,1712403961386,300.0,0.00025,2]
[321697014,1712403969823,6903.37194962,0.00025,2]
[321697015,1712403972321,6903.37194962,0.00025,2]
[321697016,1712403983829,6903.37194962,0.00025,2]
[321697017,1712403985550,160.4037179,0.00024112,2]
[321697018,1712404090436,22133.9996383,0.00024081,2]
[321697019,1712404098974,24900.0,0.00024064,2]
[321697026,1712404164574,387.674517,0.00030137,120]
[321697029,1712404219547,523.26822458,0.00025,2]
[321697124,1712404238608,-205.53253085,0.00025008,2]
[321697125,1712404238618,-435.35442115,0.00025009,2]
[321697126,1712404238627,-867.75316092,0.00025009,2]
[321697127,1712404238637,-155.0,0.0002501,2]
[321697128,1712404238647,-562.30559427,0.0002501,2]
[321697129,1712404238657,-161.46929426,0.00025011,2]
[321697130,1712404238667,-1306.43290206,0.00025012,2]
[321697131,1712404238677,-187.95207728,0.00025012,2]
[321697132,1712404238686,-180.88142279,0.00025012,2]
[321697133,1712404238695,-935.37988423,0.00025012,2]
[321697134,1712404238704,-360.55956051,0.00025013,2]
[321697135,1712404238714,-282.0779007,0.00025013,2]
[321697136,1712404238723,-157.14265956,0.00025013,2]
[321697137,1712404238733,-155.0,0.00025013,2]
[321697138,1712404238742,-263.2651397,0.00025013,2]
[321697139,1712404238752,-300.0,0.00025014,2]
[321697140,1712404238762,-300.0,0.00025014,2]
[321697141,1712404238771,-1028.20444437,0.00025023,2]
[321697142,1712404238781,-1028.20444437,0.00025023,2]
[321697143,1712404238790,-1028.20444437,0.00025023,2]
[321697144,1712404238799,-1028.20444437,0.00025023,2]
[321697145,1712404238808,-1028.20444437,0.00025023,2]
[321697146,1712404238817,-1028.20444437,0.00025023,2]
[321697147,1712404238826,-1028.20444437,0.00025023,2]
[321697148,1712404238835,-1028.20444437,0.00025023,2]
[321697149,1712404238845,-1028.20444437,0.00025023,2]
[321697150,1712404238854,-1028.20444437,0.00025023,2]
[321697151,1712404238865,-566.44707869,0.00025037,2]
[321697152,1712404238875,-192.37488231,0.00025038,2]
[321697153,1712404238885,-2607.13758302,0.00025131,2]
[321697154,1712404238895,-579.54092913,0.00025137,2]
[321697155,1712404238906,-401.76413104,0.00025137,2]
[321697156,1712404238916,-613.72233791,0.00025137,2]
[321697157,1712404238928,-266.11155132,0.00025137,2]
[321697158,1712404238939,-697.55258547,0.00025137,2]
[321697159,1712404238953,-2324.09069273,0.00025137,2]
[321697160,1712404238962,-591.09275558,0.00025137,2]
[321697161,1712404238972,-1094.18689104,0.00025137,2]
[321697162,1712404238982,-217.8175805,0.00025137,2]
[321697163,1712404238992,-846.97901101,0.00025137,2]
[321697164,1712404239009,-38.70903515,0.00025137,2]
[321697165,1712404239019,-187.11721185,0.00025137,2]
[321697166,1712404239029,-388.12264578,0.00025137,2]
[321697167,1712404239038,-156.69685818,0.00025137,2]
[321697168,1712404239047,-391.72412708,0.00025137,2]
[321697169,1712404239056,-717.0066652,0.00025137,2]
[321697170,1712404239066,-3142.78,0.00025138,2]
[321697171,1712404239075,-566.98,0.00025138,2]
[321697172,1712404239084,-1817.0,0.00025138,2]
[321697173,1712404239093,-7419.61691527,0.00025138,2]
[321697174,1712404239292,-7705.51308473,0.00025138,2]
[321697175,1712404239301,-3443.44,0.00025138,2]
[321697176,1712404239312,-1125.01,0.00025138,2]
[321697177,1712404239323,-729.42,0.00025138,2]
[321697178,1712404239334,-2381.6,0.00025138,2]
[321697179,1712404239344,-1765.27,0.00025138,2]
[321697180,1712404239355,-507.49,0.00025138,2]
[321697181,1712404239366,-2953.72,0.00025138,2]
[321697182,1712404239376,-968.62,0.00025138,2]
[321697183,1712404239386,-524.69,0.00025138,2]
[321697184,1712404239395,-500.0,0.00025138,2]
[321697185,1712404239404,-1038.4,0.00025138,2]
[321697186,1712404239413,-1065.84478886,0.00025138,2]
[321697187,1712404239427,-3093.20521114,0.00025138,2]
[321697188,1712404239438,-502.38818792,0.00025138,2]
[321697189,1712404239449,-500.0,0.00025138,2]